bitfinex-derivatives/quotes_BNBF0:USTF0_20250302
["timestamp","ask_amount","ask_price","bid_price","bid_amount"]
[1740918736365,2.84902056,607.25,606.96,0.564]
[1740918736666,1.12904395,607.25,606.96,0.564]
[1740918736859,1.12904395,607.24,606.96,0.564]
[1740918737465,1.42766073,607.38,606.96,0.564]
[1740918737766,1.12930697,607.37,606.96,0.564]
[1740918738166,1.12930697,607.36,606.96,0.564]
[1740918738659,1.12930697,607.35,606.96,0.564]
[1740918739469,2.84933317,607.34,606.96,0.564]
[1740918739866,1.12930697,607.33,606.96,0.564]
[1740918740063,1.12930697,607.32,606.96,0.564]
[1740918740465,1.12930697,607.31,606.96,0.564]
[1740918740964,1.12930697,607.3,606.96,0.564]
[1740918741866,1.12930697,607.29,606.96,0.564]
[1740918742467,1.72008996,607.28,606.97,1.722]
[1740918742666,2.84939693,607.28,606.97,1.722]
[1740918743165,1.12930697,607.27,606.97,1.722]
[1740918743571,1.12930697,607.26,606.97,1.722]
[1740918744060,1.12930697,607.25,606.97,1.722]
[1740918744570,1.12930697,607.24,606.97,1.722]
[1740918744761,1.12930697,607.23,606.97,1.722]
[1740918745366,1.72013956,607.22,606.97,1.722]
[1740918745566,2.84944653,607.22,606.97,1.722]
[1740918746169,1.12930697,607.21,606.97,1.722]
[1740918746770,1.12930697,607.2,606.97,1.722]
[1740918747367,1.72013956,607.22,606.97,1.722]
[1740918747368,1.12930697,607.19,606.97,1.722]
[1740918748072,1.12930697,607.18,606.97,1.722]
[1740918748464,2.84951738,607.18,606.97,1.722]
[1740918748869,1.12930697,607.17,606.97,1.722]
[1740918749370,1.72021041,607.18,606.97,1.722]
[1740918749371,1.12930697,607.16,606.97,1.722]
[1740918750071,1.72021041,607.18,606.97,1.722]
[1740918750072,1.12930697,607.15,606.97,1.722]
[1740918750467,1.72021041,607.18,606.97,1.722]
[1740918750468,1.12930697,607.14,606.97,1.722]
[1740918751073,1.12930697,607.13,606.97,1.722]
[1740918751273,2.84962368,607.13,606.97,1.722]
[1740918751476,1.12930697,607.12,606.97,1.722]
[1740918752166,1.12930697,607.11,606.97,1.722]
[1740918752568,1.12930697,607.1,606.97,1.722]
[1740918753478,1.12930697,607.09,606.97,1.722]
[1740918754373,2.84972999,607.08,606.97,1.722]
[1740918754875,1.12930697,607.07,606.97,1.722]
[1740918755077,1.12930697,607.06,606.97,1.722]
[1740918755575,1.72042302,607.08,606.97,1.722]
[1740918755576,1.12930697,607.05,606.97,1.722]
[1740918755973,1.12930697,607.04,606.97,1.722]
[1740918756576,1.12930697,607.03,606.97,1.722]
[1740918757079,1.42944465,607.17,606.97,1.722]
[1740918757273,1.72046555,607.04,606.97,1.722]
[1740918757473,1.42944465,607.15,606.97,1.722]
[1740918757679,1.72045846,607.03,606.97,1.722]
[1740918757878,1.42944465,607.13,606.97,1.722]
[1740918758078,3.02919047,607.3,606.97,1.722]
[1740918758280,3.0291238,607.29,606.97,1.722]
[1740918758580,3.0291238,607.28,606.97,1.722]
[1740918758772,3.0291238,607.27,606.97,1.722]
[1740918758977,3.0291238,607.26,606.97,1.722]
[1740918759180,3.0291238,607.25,606.97,1.722]
[1740918759475,0.97934064,607.23,606.97,1.722]
[1740918759676,3.0291238,607.22,606.97,1.722]
[1740918759879,3.0291238,607.21,606.97,1.722]
[1740918760079,1.12991745,607.24,606.97,1.722]
[1740918760080,3.0291238,607.2,606.97,1.722]
[1740918760280,4.15889308,607.19,606.97,1.722]
[1740918760484,1.42937798,607.18,606.97,1.722]
[1740918760679,1.42937798,607.17,606.97,1.722]
[1740918760881,1.42917151,607.16,606.97,1.722]
[1740918761079,2.55908896,607.15,606.97,1.722]
[1740918761282,1.12991745,607.15,606.97,1.722]
[1740918761579,1.12991745,607.14,606.97,1.722]
[1740918761884,1.12991745,607.13,606.97,1.722]
[1740918762286,1.12991745,607.12,606.97,1.722]
[1740918762480,1.12991745,607.11,606.97,1.722]
[1740918763185,1.12991745,607.1,606.97,1.722]
[1740918763386,2.85019873,607.1,606.97,1.722]
[1740918763587,1.12991745,607.09,606.97,1.722]
[1740918764088,1.12991745,607.08,606.97,1.722]
[1740918764587,1.12991745,607.07,606.97,1.722]
[1740918765186,1.12991745,607.06,606.97,1.722]
[1740918765584,1.12991745,607.05,606.97,1.722]
[1740918766090,1.42809349,607.27,606.97,1.722]
[1740918766390,1.7203238,607.08,606.97,1.722]
[1740918766591,3.02668563,607.25,606.97,1.722]
[1740918766788,3.02734528,607.24,606.97,1.722]
[1740918766983,1.72030254,607.08,606.97,1.722]
[1740918767185,3.02734528,607.22,606.97,1.722]
[1740918767489,1.12929112,607.07,606.97,1.722]
[1740918768088,1.12929112,607.06,606.97,1.722]
[1740918768691,1.12929112,607.05,606.97,1.722]
[1740918769093,1.12929112,607.04,606.97,1.722]
[1740918769591,1.7203238,607.08,606.88,1.111]
[1740918770092,3.02801523,607.28,606.88,1.111]
[1740918770295,1.72029545,607.15,606.88,1.111]
[1740918770494,3.02801523,607.26,606.88,1.111]
[1740918770695,1.72023167,607.14,606.88,1.111]
[1740918770995,1.12958508,607.13,606.88,1.111]
[1740918771389,1.12958508,607.12,606.88,1.111]
[1740918771593,1.12958508,607.12,606.74,0.564]
[1740918771893,1.12958508,607.11,606.74,0.564]
[1740918772295,1.12958508,607.1,606.74,0.564]
[1740918772497,1.12958508,607.09,606.74,0.564]
[1740918772795,1.12958508,607.09,606.75,2.972]
[1740918772997,1.12958508,607.08,606.75,2.972]
[1740918773698,1.12958508,607.07,606.75,2.972]
[1740918774094,1.72075621,607.14,606.75,2.972]
[1740918774299,1.1300323,607.13,606.75,2.972]
[1740918774793,1.1300323,607.13,606.76,1.255]
[1740918774994,1.1300323,607.12,606.76,1.255]
[1740918775393,3.02936826,607.32,606.76,1.255]
[1740918775394,1.1300323,607.11,606.76,1.255]
[1740918775993,1.1300323,607.1,606.76,1.255]
[1740918776197,1.72033797,607.14,606.76,1.255]
[1740918776198,1.1300323,607.09,606.76,1.255]
[1740918776798,1.1300323,607.08,606.76,1.255]
[1740918777197,1.72033797,607.14,606.76,1.255]
[1740918777593,1.1302604,607.13,606.76,1.255]
[1740918777995,1.1302604,607.12,606.76,1.255]
[1740918778601,1.1302604,607.11,606.76,1.255]
[1740918778801,1.1302604,607.1,606.76,1.255]
[1740918779199,1.1302604,607.09,606.76,1.255]
[1740918780003,1.1302604,607.08,606.76,1.255]
[1740918780999,1.1302604,607.07,606.76,1.255]
[1740918781605,1.1302604,607.06,606.76,1.255]
[1740918782198,1.72037341,607.14,606.76,1.255]
[1740918782805,1.13044768,607.13,606.76,1.255]
[1740918783400,1.13044768,607.12,606.76,1.255]
[1740918784006,1.13044768,607.11,606.76,1.255]
[1740918784405,1.13044768,607.1,606.76,1.255]
[1740918784903,1.13044768,607.09,606.76,1.255]
[1740918785302,1.13044768,607.08,606.76,1.255]
[1740918785707,1.13044768,607.08,606.76,1.819]
[1740918786009,1.13044768,607.07,606.76,1.819]
[1740918787009,1.13044768,607.06,606.76,1.819]
[1740918787209,1.13044768,607.05,606.76,1.819]
[1740918787602,1.72038049,607.14,606.76,1.819]
[1740918788007,1.13050441,607.13,606.76,1.819]
[1740918788912,1.13050441,607.12,606.76,0.564]
[1740918789411,1.13080345,607.11,606.76,0.564]
[1740918789908,1.72023167,607.21,606.76,0.564]
[1740918790508,1.13077086,607.2,606.76,0.564]
[1740918790714,1.13077086,607.19,606.76,0.564]
[1740918791507,1.13077086,607.18,606.76,0.564]
[1740918791911,1.13077086,607.17,606.76,0.564]
[1740918792213,1.13077086,607.17,606.77,1.126]
[1740918792412,1.13077086,607.16,606.77,1.126]
[1740918793014,1.13077086,607.15,606.77,1.126]
[1740918793611,1.13077086,607.14,606.77,1.126]
[1740918794014,1.13077086,607.14,606.77,2.283]
[1740918794317,1.72020333,607.21,606.77,2.283]
[1740918794613,1.13091523,607.2,606.77,2.283]
[1740918795212,1.72020333,607.21,606.77,2.283]
[1740918795213,1.13091523,607.19,606.77,2.283]
[1740918795812,1.13091523,607.18,606.77,4.094]
[1740918796414,1.13091523,607.17,606.77,4.094]
[1740918796815,1.13091523,607.16,606.77,4.094]
[1740918797108,1.13091523,607.15,606.77,4.094]
[1740918797714,1.72018915,607.21,606.77,4.094]
[1740918797911,1.13082907,607.2,606.77,4.094]
[1740918798512,1.13082907,607.19,606.77,4.094]
[1740918799117,1.13082907,607.18,606.77,4.094]
[1740918799910,1.13082907,607.17,606.77,4.094]
[1740918800510,1.13082907,607.16,606.77,4.094]
[1740918800916,1.13082907,607.15,606.77,4.094]
[1740918801216,1.13082907,607.14,606.77,4.094]
[1740918801817,1.13082907,607.13,606.77,4.094]
[1740918802312,1.13082907,607.12,606.77,4.094]
[1740918802816,1.72028128,607.17,606.77,4.094]
[1740918802817,1.13082907,607.11,606.77,4.094]
[1740918803412,1.13082907,607.1,606.77,4.094]
[1740918803617,1.72028128,607.17,606.77,4.094]
[1740918804213,1.13044498,607.16,606.77,4.094]
[1740918804919,1.13044498,607.15,606.77,4.094]
[1740918805422,1.13044498,607.14,606.77,4.094]
[1740918806213,1.13044498,607.13,606.77,4.094]
[1740918806816,1.7202671,607.17,606.77,4.094]
[1740918807220,1.13038875,607.16,606.77,4.094]
[1740918807823,1.13038875,607.15,606.77,4.094]
[1740918808423,3.03021213,607.32,606.77,4.094]
[1740918808424,1.13038875,607.14,606.77,4.094]
[1740918809124,1.13038875,607.13,606.77,4.094]
[1740918809624,1.13038875,607.12,606.77,4.094]
[1740918810119,1.13038875,607.11,606.77,4.094]
[1740918810522,1.13038875,607.1,606.77,4.094]
[1740918810925,1.7202671,607.17,606.77,4.094]
[1740918811123,0.97952177,607.38,606.77,4.094]
[1740918811325,4.01044194,607.37,606.77,4.094]
[1740918811627,3.03092017,607.36,606.77,4.094]
[1740918811823,3.03092017,607.35,606.77,4.658]
[1740918812025,3.03092017,607.34,606.77,4.658]
[1740918812327,3.03092017,607.33,606.77,4.658]
[1740918812526,3.03092017,607.32,606.77,4.658]
[1740918812723,4.16095816,607.31,606.77,4.658]
[1740918812922,3.03092017,607.3,606.77,4.658]
[1740918813121,3.03092017,607.29,606.77,4.658]
[1740918813322,3.03092017,607.28,606.77,4.658]
[1740918813531,2.5602947,607.27,606.77,4.658]
[1740918813724,1.43025671,607.26,606.77,4.658]
[1740918813921,1.43025671,607.25,606.77,4.658]
[1740918814121,1.43025671,607.24,606.77,4.658]
[1740918814325,1.43025671,607.23,606.77,4.658]
[1740918814626,1.13003799,607.22,606.77,4.658]
[1740918815321,1.13003799,607.21,606.77,4.658]
[1740918816023,1.13003799,607.2,606.77,4.658]
[1740918816527,1.13003799,607.19,606.77,4.658]
[1740918817126,1.13003799,607.18,606.77,4.658]
[1740918817525,2.85027675,607.18,606.77,4.658]
[1740918817725,1.13003799,607.17,606.77,4.658]
[1740918818225,1.13003799,607.16,606.77,4.658]
[1740918818627,1.13003799,607.15,606.77,4.658]
[1740918819627,1.13003799,607.14,606.77,4.658]
[1740918820123,1.13003799,607.13,606.77,4.658]
[1740918820926,1.13003799,607.12,606.77,4.658]
[1740918821632,1.72027419,607.17,606.77,4.658]
[1740918822134,1.13296545,607.16,606.77,4.658]
[1740918822730,1.13296545,607.15,606.77,4.658]
[1740918822926,1.13296545,607.14,606.77,4.658]
[1740918823327,1.13296545,607.13,606.77,4.658]
[1740918823930,1.13296545,607.12,606.77,4.658]
[1740918824128,1.7202671,607.17,606.77,4.658]
[1740918824833,1.13349116,607.16,606.77,4.658]
[1740918825329,1.13349116,607.15,606.77,4.658]
[1740918825732,1.13349116,607.14,606.77,4.658]
[1740918826234,1.13349116,607.13,606.77,4.658]
[1740918827027,1.13349116,607.12,606.77,4.658]
[1740918827728,1.46427095,607.88,606.77,4.658]
[1740918827729,1.13349116,607.11,606.77,4.658]
[1740918828134,1.43469304,607.23,606.77,4.658]
[1740918828433,1.72023167,607.24,606.77,4.658]
[1740918828635,1.43475797,607.23,606.77,4.658]
[1740918828829,2.56890829,607.22,606.77,4.658]
[1740918829026,1.13415032,607.22,606.77,4.658]
[1740918829430,2.56897241,607.21,606.77,4.658]
[1740918829634,1.13415032,607.2,606.77,4.658]
[1740918830029,1.13415032,607.19,606.77,4.658]
[1740918830537,1.13415032,607.18,606.77,4.658]
[1740918831135,1.72016081,607.24,606.77,4.658]
[1740918831337,1.13439128,607.23,606.77,4.658]
[1740918832036,1.13439128,607.22,606.77,4.658]
[1740918832239,1.13439128,607.21,606.77,4.658]
[1740918832735,1.13439128,607.2,606.77,4.658]
[1740918832927,1.13439128,607.19,606.77,4.658]
[1740918833535,1.7200687,607.29,606.77,4.658]
[1740918834332,1.13414999,607.28,606.77,4.658]
[1740918835031,1.13414999,607.28,606.78,0.32960875]
[1740918835235,1.13414999,607.27,606.78,0.32960875]
[1740918835536,1.71996244,607.35,606.78,0.32960875]
[1740918836135,1.13419174,607.34,606.78,0.32960875]
[1740918837036,1.13419174,607.33,606.78,0.32960875]
[1740918837242,1.13419174,607.32,606.78,0.32960875]
[1740918837930,1.43418057,607.42,606.78,0.32960875]
[1740918838132,1.6051009,607.6,606.78,0.32960875]
[1740918838432,1.71967913,607.45,606.78,1.58260875]
[1740918838638,1.43376181,607.44,606.78,4.28660875]
[1740918838833,1.13328693,607.44,606.78,4.28660875]
[1740918839235,1.13328693,607.43,606.78,4.28660875]
[1740918840034,1.13328693,607.42,606.78,4.28660875]
[1740918840637,1.13328693,607.41,606.78,4.28660875]
[1740918841035,1.13328693,607.4,606.78,4.28660875]
[1740918841637,1.13328693,607.39,606.78,4.28660875]
[1740918842232,1.13328693,607.38,606.78,4.28660875]
[1740918842637,1.71967913,607.45,606.78,4.28660875]
[1740918843137,1.13211594,607.44,606.78,4.28660875]
[1740918843740,1.13211594,607.43,606.78,4.28660875]
[1740918844038,1.13211594,607.42,606.78,4.28660875]
[1740918844239,1.13211594,607.42,606.78,4.85060875]
[1740918844744,1.71966496,607.51,606.78,4.85060875]
[1740918845041,1.13154474,607.5,606.78,4.85060875]
[1740918845439,1.13154474,607.49,606.78,4.85060875]
[1740918846036,1.13154474,607.48,606.78,4.85060875]
[1740918848746,1.13154474,607.47,606.78,4.85060875]
[1740918849345,1.71954458,607.51,606.78,4.85060875]
[1740918850147,1.13081607,607.5,606.78,4.85060875]
[1740918850848,1.13081607,607.49,606.78,4.85060875]
[1740918851541,1.13081607,607.48,606.78,4.85060875]
[1740918851946,1.13081607,607.47,606.78,4.85060875]
[1740918852447,1.71952334,607.51,606.78,4.85060875]
[1740918852646,1.13021793,607.5,606.78,4.85060875]
[1740918853042,1.13021793,607.49,606.78,4.85060875]
[1740918853651,1.7195375,607.51,606.78,4.85060875]
[1740918854144,1.13023393,607.5,606.78,4.85060875]
[1740918854351,1.13023393,607.49,606.78,4.85060875]
[1740918854946,1.7195375,607.51,606.78,4.85060875]
[1740918854947,1.13023393,607.48,606.78,4.85060875]
[1740918855749,1.7195375,607.51,606.78,4.85060875]
[1740918856452,1.12988948,607.5,606.78,4.85060875]
[1740918856852,1.12988948,607.49,606.78,4.85060875]
[1740918857347,1.12988948,607.48,606.78,4.85060875]
[1740918857547,1.7195375,607.51,606.78,4.85060875]
[1740918858153,1.12954643,607.5,606.78,4.85060875]
[1740918859057,1.12954643,607.49,606.78,4.85060875]
[1740918859254,1.42895031,607.69,606.78,4.85060875]
[1740918859456,1.71959415,607.48,606.78,4.85060875]
[1740918859758,3.02811342,607.67,606.78,4.85060875]
[1740918859952,1.71960123,607.47,606.78,4.85060875]
[1740918860152,3.02811342,607.65,606.78,4.85060875]
[1740918860451,2.72805837,607.64,606.78,4.85060875]
[1740918860753,1.12925486,607.64,606.78,4.85060875]
[1740918861153,1.12925486,607.63,606.78,4.85060875]
[1740918861454,2.8487428,607.63,606.78,4.85060875]
[1740918861854,1.12925486,607.62,606.78,4.85060875]
[1740918862360,1.12925486,607.61,606.78,4.85060875]
[1740918862553,2.84875696,607.61,606.78,4.85060875]
[1740918862749,1.12925486,607.6,606.78,4.85060875]
[1740918863153,1.12925486,607.59,606.78,4.85060875]
[1740918863856,1.12925486,607.58,606.78,4.85060875]
[1740918864251,1.12925486,607.57,606.78,4.85060875]
[1740918864955,1.12925486,607.56,606.78,4.85060875]
[1740918865558,1.46427095,608.7,606.78,4.85060875]
[1740918865559,2.84879944,607.55,606.78,4.85060875]
[1740918865961,1.12925486,607.54,606.78,4.85060875]
[1740918866258,1.12925486,607.53,606.78,4.85060875]
[1740918866957,1.12925486,607.52,606.78,4.85060875]
[1740918867760,1.71954458,607.55,606.78,4.85060875]
[1740918867960,3.02405493,607.76,606.78,4.85060875]
[1740918868162,1.12774607,607.54,606.78,4.85060875]
[1740918868360,2.84729773,607.54,606.78,4.85060875]
[1740918868561,1.12774607,607.54,606.78,4.85060875]
[1740918868760,2.84730482,607.53,606.78,4.85060875]
[1740918869158,1.12774607,607.52,606.78,4.85060875]
[1740918869659,1.12774607,607.51,606.78,4.85060875]
[1740918870259,1.12774607,607.5,606.78,4.85060875]
[1740918870862,1.12774607,607.49,606.78,4.85060875]
[1740918871458,1.71959415,607.48,606.78,4.85060875]
[1740918873963,1.42731431,607.65,606.78,4.85060875]
[1740918874160,1.59892957,607.82,606.78,4.85060875]
[1740918874361,1.59892957,608.15,606.78,6.56958708]
[1740918874562,1.71885805,607.92,606.78,6.56958708]
[1740918874763,3.02889535,608.21,606.78,6.56958708]
[1740918874966,1.13020383,607.91,606.78,6.56958708]
[1740918875366,4.15909918,608.18,606.78,6.56958708]
[1740918875563,3.02889535,608.17,606.78,6.56958708]
[1740918875762,1.59892957,608.16,606.78,6.56958708]
[1740918875966,2.84867992,608.16,606.78,6.56958708]
[1740918876567,1.13020383,608.15,606.78,6.56958708]
[1740918876968,1.13020383,608.15,606.78,4.85060875]
[1740918877168,1.13020383,608.14,606.78,4.85060875]
[1740918877466,1.13020383,608.13,606.78,6.56908484]
[1740918878468,1.13020383,608.12,606.78,6.56908484]
[1740918879169,1.13020383,608.11,606.78,6.56908484]
[1740918880070,1.13020383,608.1,606.78,4.85060875]
[1740918880471,2.84859506,608.1,606.78,6.56899998]
[1740918880664,1.13020383,608.09,606.78,6.56899998]
[1740918881371,1.13020383,608.08,606.78,6.56899998]
[1740918882165,1.13020383,608.07,606.78,6.56899998]
[1740918882570,1.13020383,608.09,606.78,6.56899998]
[1740918883073,1.13020383,608.09,606.78,4.85060875]
[1740918883272,1.71840537,608.08,606.78,4.85060875]
[1740918884673,1.71840537,608.08,606.78,6.56902119]
[1740918886177,4.14664646,608.35,606.78,4.85060875]
[1740918886469,1.71841244,608.07,606.78,6.56902119]
[1740918886774,4.14664646,608.33,606.78,6.56902119]
[1740918886970,3.01644263,608.32,606.78,6.56902119]
[1740918887174,1.59192282,608.31,606.78,6.56902119]
[1740918887470,1.13020383,608.3,606.78,6.56902119]
[1740918887775,2.84845365,608.3,606.78,6.56902119]
[1740918887975,1.58984978,608.29,606.78,6.56902119]
[1740918888170,1.13020383,608.28,606.78,6.56902119]
[1740918888675,1.13020383,608.27,606.78,6.56902119]
[1740918889069,1.13020383,608.26,606.78,4.85060875]
[1740918889274,2.84848193,608.26,606.78,6.56888685]
[1740918889671,1.13020383,608.25,606.78,6.56888685]
[1740918890377,1.13020383,608.24,606.78,6.56888685]
[1740918890676,1.13020383,608.25,606.78,6.56888685]
[1740918891670,1.7182781,608.26,606.78,6.56888685]
[1740918892075,1.42451981,608.4,606.78,4.85060875]
[1740918892276,0.30228437,608.39,606.78,4.85060875]
[1740918892471,0.30228437,608.38,606.78,6.56879494]
[1740918892878,1.13020383,608.37,606.78,6.56879494]
[1740918893078,1.4324882,608.36,606.78,6.56879494]
[1740918893276,0.30228437,608.35,606.78,6.56879494]
[1740918893772,1.13020383,608.34,606.78,6.56879494]
[1740918894578,1.13020383,608.33,606.78,6.56879494]
[1740918895177,1.13020383,608.32,606.78,6.56879494]
[1740918895779,1.13020383,608.31,606.78,6.56879494]
[1740918896375,1.13020383,608.3,606.78,6.56879494]
[1740918896575,1.13020383,608.29,606.78,6.56879494]
[1740918897180,1.13020383,608.28,606.78,6.56879494]
[1740918897376,1.13020383,608.27,606.78,6.56879494]
[1740918897881,1.13020383,608.26,606.78,6.56879494]
[1740918898075,1.13020383,608.26,606.78,4.85060875]
[1740918898275,1.13020383,608.25,606.78,4.85060875]
[1740918898581,2.848489,608.25,606.78,6.56889392]
[1740918898782,1.13020383,608.24,606.78,6.56889392]
[1740918899181,1.13020383,608.23,606.78,6.56889392]
[1740918899681,1.13020383,608.22,606.78,6.56889392]
[1740918900482,1.13020383,608.24,606.78,6.56889392]
[1740918900678,1.13020383,608.21,606.78,6.56889392]
[1740918901081,1.13020383,608.21,606.78,4.85060875]
[1740918901277,1.71834881,608.2,606.78,6.56895756]
[1740918901477,2.84855264,608.2,606.78,6.56895756]
[1740918901883,1.13020383,608.19,606.78,6.56895756]
[1740918902883,1.71834881,608.2,606.78,6.56895756]
[1740918903981,1.41795533,608.26,606.78,4.85060875]
[1740918904282,1.13020383,608.25,606.78,4.85060875]
[1740918904485,2.84851728,608.25,606.78,6.5689222]
[1740918904886,1.13020383,608.24,606.78,6.5689222]
[1740918905287,1.13020383,608.23,606.78,6.5689222]
[1740918905684,1.13020383,608.22,606.78,6.5689222]
[1740918906284,1.13020383,608.21,606.78,6.5689222]
[1740918907088,1.13020383,608.24,606.78,4.85060875]
[1740918907586,2.84853142,608.23,606.78,6.56893634]
[1740918908288,1.71832759,608.23,606.78,6.56893634]
[1740918909183,1.71832759,608.23,606.85,1.23095386]
[1740918909690,1.71832759,608.23,606.87,0.32955987]
[1740918910091,1.13020383,608.38,606.87,0.32955987]
[1740918910092,3.17485427,608.37,606.87,0.32955987]
[1740918910290,1.720301,608.36,606.87,0.32955987]
[1740918910590,1.432486,608.35,607.12,1.23095386]
[1740918910790,0.30228217,608.34,607.14,0.32941331]
[1740918910994,1.587434,608.34,607.14,0.32941331]
[1740918911291,4.13565666,608.35,607.14,0.32941331]
[1740918911490,1.13020383,608.33,607.14,0.32941331]
[1740918911890,1.13020383,608.32,607.14,0.32941331]
[1740918912291,1.13020383,608.31,607.14,0.32941331]
[1740918912792,1.13020383,608.34,607.15,5.162]
[1740918912987,1.43248852,608.33,607.17,0.32939703]
[1740918913191,0.30228469,608.32,607.17,0.32939703]
[1740918913586,2.0202871,608.32,607.17,0.32939703]
[1740918913787,3.13602124,608.32,607.17,0.32939703]
[1740918914091,2.54822266,608.31,607.17,0.32939703]
[1740918914291,1.13020383,608.31,607.17,0.32939703]
[1740918914487,1.71800241,608.32,607.17,0.32939703]
[1740918914692,1.71800241,608.32,607.22,1.23095386]
[1740918914991,1.71800241,608.32,607.24,0.32935906]
[1740918915693,1.71800241,608.32,607.25,1.23095386]
[1740918915987,1.71800241,608.32,607.27,0.32934279]
[1740918916192,2.84820624,608.32,607.27,0.32934279]
[1740918916794,1.13020383,608.31,607.27,0.32934279]
[1740918917489,1.13020383,608.3,607.27,0.32934279]
[1740918917895,1.13020383,608.29,607.27,0.32934279]
[1740918918596,1.13020383,608.28,607.27,0.32934279]
[1740918918992,1.13020383,608.27,607.27,0.32934279]
[1740918919197,2.71948328,608.27,607.27,0.32934279]
[1740918919396,1.13020383,608.27,607.27,0.32934279]
[1740918919695,2.84818504,608.26,607.27,0.32934279]
[1740918920100,1.13020383,608.25,607.27,0.32934279]
[1740918920301,1.13020383,608.24,607.27,0.32934279]
[1740918921002,1.13020383,608.23,607.27,0.32934279]
[1740918921596,1.13020383,608.22,607.27,0.32934279]
[1740918922203,1.13020383,608.21,607.27,0.32934279]
[1740918922598,1.13020383,608.2,607.27,0.32934279]
[1740918922804,2.72122233,608.2,607.27,0.32934279]
[1740918922998,2.72122233,608.19,607.27,0.32934279]
[1740918923204,1.5910185,608.18,607.27,0.32934279]
[1740918923504,1.13020383,608.19,607.27,0.32934279]
[1740918923805,1.13020383,608.17,607.27,0.32934279]
[1740918924206,3.01042086,608.2,607.27,0.32934279]
[1740918924207,1.13020383,608.16,607.27,0.32934279]
[1740918924905,1.13020383,608.15,607.27,0.32934279]
[1740918925405,1.13020383,608.14,607.27,0.32934279]
[1740918925605,2.84845365,608.14,607.27,0.32934279]
[1740918925807,1.13020383,608.13,607.27,0.32934279]
[1740918926506,1.13020383,608.12,607.27,0.32934279]
[1740918927205,1.13020383,608.11,607.27,0.32934279]
[1740918927807,1.13020383,608.1,607.27,0.32934279]
[1740918928607,2.84852435,608.09,607.27,0.32934279]
[1740918929007,1.13020383,608.08,607.27,0.32934279]
[1740918929203,1.13020383,608.07,607.27,0.32934279]
[1740918929903,1.13020383,608.07,607.27,0.89334279]
[1740918930103,1.13020383,608.06,607.27,0.89334279]
[1740918930507,1.13020383,608.05,607.27,0.89334279]
[1740918931010,1.13020383,608.05,607.27,2.68334279]
[1740918931210,1.13020383,608.04,607.27,2.68334279]
[1740918931409,1.13020383,608.03,607.27,2.68334279]
[1740918932011,1.13020383,608.02,607.27,2.68334279]
[1740918932611,1.13020383,608.01,607.27,2.68334279]
[1740918933112,2.55688558,608.0,607.27,2.68334279]
[1740918933308,1.42668175,607.99,607.27,2.68334279]
[1740918933513,1.13020383,607.98,607.27,2.68334279]
[1740918933911,1.13020383,607.97,607.27,2.68334279]
[1740918934111,1.43128447,607.96,607.27,2.68334279]
[1740918934313,1.43128447,607.95,607.27,2.68334279]
[1740918934514,1.43128447,607.94,607.27,2.68334279]
[1740918934714,2.5614883,607.93,607.27,2.68334279]
[1740918934914,1.13020383,607.92,607.27,4.27434279]
[1740918935210,1.13020383,607.91,607.27,4.27434279]
[1740918935610,1.13020383,607.9,607.27,4.27434279]
[1740918936415,1.13020383,607.89,607.27,4.27434279]
[1740918936814,1.13020383,607.88,607.27,4.27434279]
[1740918937408,1.13020383,607.87,607.27,4.27434279]
[1740918938015,1.13020383,607.86,607.27,4.27434279]
[1740918938317,1.13020383,607.85,607.27,4.27434279]
[1740918938717,1.13020383,607.84,607.27,4.27434279]
[1740918938915,1.13020383,607.83,607.27,4.27434279]
[1740918939315,1.71839123,607.88,607.27,4.27434279]
[1740918939918,1.13339893,607.87,607.27,4.27434279]
[1740918940613,1.13339893,607.86,607.27,4.27434279]
[1740918941013,1.13339893,607.85,607.27,4.27434279]
[1740918941619,1.13339893,607.84,607.27,4.27434279]
[1740918942020,1.7183983,607.88,607.27,5.55234279]
[1740918942616,1.13320139,607.87,607.27,5.55234279]
[1740918942817,1.13320139,607.86,607.27,5.55234279]
[1740918943219,1.13320139,607.85,607.27,5.55234279]
[1740918943725,1.71840537,607.88,607.27,5.55234279]
[1740918944519,1.13309372,607.87,607.27,5.55234279]
[1740918944722,1.13309372,607.86,607.27,5.55234279]
[1740918945318,1.13309372,607.85,607.27,5.55234279]
[1740918946023,1.13309372,607.84,607.27,5.55234279]
[1740918946620,1.71841951,607.88,607.27,5.55234279]